Workbook

Sheet Worksheet
A1: Variables
F2: National 5 Maths: Non-calculator practice | H2: Answers (this column does not print by default)
D3: =IF(K3=1,"Easier",IF(K3=2,"Harder","Harder")) -> Easier | F3: 1 | G3: 20 + 12 × 16 | H3: 212 | K3: 1
D4: =IF(K4=1,"Easier",IF(K4=2,"Harder","Harder")) -> Easier | F4: 2 | G4: 180 – 80 – 75 | H4: 25 | K4: 1
D5: Easier | F5: 3 | G5: 11 × 82 | H5: 902 | K5: 1
D6: Easier | F6: 4 | G6: Divide: 105 ÷ 30 | H6: 3.5 | K6: 1
D7: Easier | F7: 5 | G7: 5.88 × 30 | H7: 176.4 | K7: 1
D8: Easier | F8: 6 | G8: What is 2 to the power of 4 ? | H8: 16 | K8: 1
D9: Easier | F9: 7 | G9: 9049.4 × 100 | H9: 904940 | K9: 1
D10: Easier | F10: 8 | G10: 90% of 37000 | H10: 33300 | K10: 1
D11: Easier | F11: 9 | G11: Divide: -7200 ÷ 40 | H11: 90 | K11: 1
D12: Easier | F12: 10 | G12: 0.9 × 4800 | H12: 4320 | K12: 1
D13: Harder | F13: 11 | G13: use the gradient formula with the coordinates: (10 , -8) and (2 , 9) | H13: -17/8 | K13: 2
D14: Harder | F14: 12 | G14: 7.5 × 56 + 10 | H14: 430 | K14: 2
D15: Harder | F15: 13 | G15: 15% of £790 | H15: £118.50 | K15: 2
D16: Harder | F16: 14 | G16: use the gradient formula with the coordinates: (1 , -9) and (-9 , -3) | H16: -3/5 | K16: 2
D17: Harder | F17: 15 | G17: 15% of £790 | H17: £118.50 | K17: 2
D18: Harder | F18: 16 | G18: 0.9 × 1900 | H18: 1710 | K18: 2
D19: Harder | F19: 17 | G19: 16 to the power of 3/4 | H19: 8 | K19: 2
D20: Harder | F20: 18 | G20: 1/2 × 28 × 27 × 1/3 | H20: 126 | K20: 2
D21: Harder | F21: 19 | G21: £13.70 × 30 | H21: £411 | K21: 2
D22: Harder | F22: 20 | G22: 32 to the power of 2/5 | H22: 4 | K22: 2

Sheet SYSTEM FORMULAE
A1: =Worksheet!D3 -> Easier | B1: =IF($A1="Easier",RANDBETWEEN(1,Easy),IF($A1="Harder",RANDBETWEEN(Easy+1,Easy+Medium),IF($A1="Harder",RANDBETWEEN(Easy+Medium+1,Easy+Medium+Hard),RANDBETWEEN(1,Easy+Medium+Hard)))) -> 29 | C1: =IF(COUNTIF(B$1:B1,B1)<>1,IF($A1="Easier",RANDBETWEEN(1,Easy),IF($A1="Harder",RANDBETWEEN(Easy+1,Easy+Medium),IF($A1="Harder",RANDBETWEEN(Easy+Medium+1,Easy+Medium+Hard),RANDBETWEEN(1,Easy+Medium+Hard)))),B1) -> 29 | D1: =IF(COUNTIF(C$1:C1,C1)<>1,IF($A1="Easier",RANDBETWEEN(1,Easy),IF($A1="Harder",RANDBETWEEN(Easy+1,Easy+Medium),IF($A1="Harder",RANDBETWEEN(Easy+Medium+1,Easy+Medium+Hard),RANDBETWEEN(1,Easy+Medium+Hard)))),C1) -> 29 | E1: =IF(COUNTIF(D$1:D1,D1)<>1,IF($A1="Easier",RANDBETWEEN(1,Easy),IF($A1="Harder",RANDBETWEEN(Easy+1,Easy+Medium),IF($A1="Harder",RANDBETWEEN(Easy+Medium+1,Easy+Medium+Hard),RANDBETWEEN(1,Easy+Medium+Hard)))),D1) -> 29 | F1: =IF(COUNTIF(E$1:E1,E1)<>1,IF($A1="Easier",RANDBETWEEN(1,Easy),IF($A1="Harder",RANDBETWEEN(Easy+1,Easy+Medium),IF($A1="Harder",RANDBETWEEN(Easy+Medium+1,Easy+Medium+Hard),RANDBETWEEN(1,Easy+Medium+Hard)))),E1) -> 29 | G1: 1 | H1: =VLOOKUP($F1,'System DO NOT OPEN'!$A$8:$P$188,11) -> Divide: 315 ÷ 50 | I1: =VLOOKUP($F1,'System DO NOT OPEN'!$A$8:$P$188,16) -> 6.3 | U1: shading shapes
A2: =Worksheet!D4 -> Easier | B2: 16 | C2: =IF(COUNTIF(B$1:B2,B2)<>1,IF($A2="Easier",RANDBETWEEN(1,Easy),IF($A2="Harder",RANDBETWEEN(Easy+1,Easy+Medium),IF($A2="Harder",RANDBETWEEN(Easy+Medium+1,Easy+Medium+Hard),RANDBETWEEN(1,Easy+Medium+Hard)))),B2) -> 16 | D2: =IF(COUNTIF(C$1:C2,C2)<>1,IF($A2="Easier",RANDBETWEEN(1,Easy),IF($A2="Harder",RANDBETWEEN(Easy+1,Easy+Medium),IF($A2="Harder",RANDBETWEEN(Easy+Medium+1,Easy+Medium+Hard),RANDBETWEEN(1,Easy+Medium+Hard)))),C2) -> 16 | E2: =IF(COUNTIF(D$1:D2,D2)<>1,IF($A2="Easier",RANDBETWEEN(1,Easy),IF($A2="Harder",RANDBETWEEN(Easy+1,Easy+Medium),IF($A2="Harder",RANDBETWEEN(Easy+Medium+1,Easy+Medium+Hard),RANDBETWEEN(1,Easy+Medium+Hard)))),D2) -> 16 | F2: =IF(COUNTIF(E$1:E2,E2)<>1,IF($A2="Easier",RANDBETWEEN(1,Easy),IF($A2="Harder",RANDBETWEEN(Easy+1,Easy+Medium),IF($A2="Harder",RANDBETWEEN(Easy+Medium+1,Easy+Medium+Hard),RANDBETWEEN(1,Easy+Medium+Hard)))),E2) -> 16 | G2: 2 | H2: =VLOOKUP($F2,'System DO NOT OPEN'!$A$8:$P$188,11) -> What is 5 to the power of 4 ? | I2: =VLOOKUP($F2,'System DO NOT OPEN'!$A$8:$P$188,16) -> 625 | U2: how many 4p grapes for 28p
A3: =Worksheet!D5 -> Easier | B3: 11 | C3: =IF(COUNTIF(B$1:B3,B3)<>1,IF($A3="Easier",RANDBETWEEN(1,Easy),IF($A3="Harder",RANDBETWEEN(Easy+1,Easy+Medium),IF($A3="Harder",RANDBETWEEN(Easy+Medium+1,Easy+Medium+Hard),RANDBETWEEN(1,Easy+Medium+Hard)))),B3) -> 11 | D3: =IF(COUNTIF(C$1:C3,C3)<>1,IF($A3="Easier",RANDBETWEEN(1,Easy),IF($A3="Harder",RANDBETWEEN(Easy+1,Easy+Medium),IF($A3="Harder",RANDBETWEEN(Easy+Medium+1,Easy+Medium+Hard),RANDBETWEEN(1,Easy+Medium+Hard)))),C3) -> 11 | E3: =IF(COUNTIF(D$1:D3,D3)<>1,IF($A3="Easier",RANDBETWEEN(1,Easy),IF($A3="Harder",RANDBETWEEN(Easy+1,Easy+Medium),IF($A3="Harder",RANDBETWEEN(Easy+Medium+1,Easy+Medium+Hard),RANDBETWEEN(1,Easy+Medium+Hard)))),D3) -> 11 | F3: =IF(COUNTIF(E$1:E3,E3)<>1,IF($A3="Easier",RANDBETWEEN(1,Easy),IF($A3="Harder",RANDBETWEEN(Easy+1,Easy+Medium),IF($A3="Harder",RANDBETWEEN(Easy+Medium+1,Easy+Medium+Hard),RANDBETWEEN(1,Easy+Medium+Hard)))),E3) -> 11 | G3: 3 | H3: =VLOOKUP($F3,'System DO NOT OPEN'!$A$8:$P$188,11) -> 5% of 1760 | I3: =VLOOKUP($F3,'System DO NOT OPEN'!$A$8:$P$188,16) -> 88 | U3: what do 9 pencils cost at 10p each
A4: =Worksheet!D6 -> Easier | B4: 13 | C4: =IF(COUNTIF(B$1:B4,B4)<>1,IF($A4="Easier",RANDBETWEEN(1,Easy),IF($A4="Harder",RANDBETWEEN(Easy+1,Easy+Medium),IF($A4="Harder",RANDBETWEEN(Easy+Medium+1,Easy+Medium+Hard),RANDBETWEEN(1,Easy+Medium+Hard)))),B4) -> 13 | D4: =IF(COUNTIF(C$1:C4,C4)<>1,IF($A4="Easier",RANDBETWEEN(1,Easy),IF($A4="Harder",RANDBETWEEN(Easy+1,Easy+Medium),IF($A4="Harder",RANDBETWEEN(Easy+Medium+1,Easy+Medium+Hard),RANDBETWEEN(1,Easy+Medium+Hard)))),C4) -> 13 | E4: =IF(COUNTIF(D$1:D4,D4)<>1,IF($A4="Easier",RANDBETWEEN(1,Easy),IF($A4="Harder",RANDBETWEEN(Easy+1,Easy+Medium),IF($A4="Harder",RANDBETWEEN(Easy+Medium+1,Easy+Medium+Hard),RANDBETWEEN(1,Easy+Medium+Hard)))),D4) -> 13 | F4: =IF(COUNTIF(E$1:E4,E4)<>1,IF($A4="Easier",RANDBETWEEN(1,Easy),IF($A4="Harder",RANDBETWEEN(Easy+1,Easy+Medium),IF($A4="Harder",RANDBETWEEN(Easy+Medium+1,Easy+Medium+Hard),RANDBETWEEN(1,Easy+Medium+Hard)))),E4) -> 13 | G4: 4 | H4: =VLOOKUP($F4,'System DO NOT OPEN'!$A$8:$P$188,11) -> What is the square root of 121? | I4: =VLOOKUP($F4,'System DO NOT OPEN'!$A$8:$P$188,16) -> 11 | U4: pounds/pence
A5: =Worksheet!D7 -> Easier | B5: 35 | C5: =IF(COUNTIF(B$1:B5,B5)<>1,IF($A5="Easier",RANDBETWEEN(1,Easy),IF($A5="Harder",RANDBETWEEN(Easy+1,Easy+Medium),IF($A5="Harder",RANDBETWEEN(Easy+Medium+1,Easy+Medium+Hard),RANDBETWEEN(1,Easy+Medium+Hard)))),B5) -> 35 | D5: =IF(COUNTIF(C$1:C5,C5)<>1,IF($A5="Easier",RANDBETWEEN(1,Easy),IF($A5="Harder",RANDBETWEEN(Easy+1,Easy+Medium),IF($A5="Harder",RANDBETWEEN(Easy+Medium+1,Easy+Medium+Hard),RANDBETWEEN(1,Easy+Medium+Hard)))),C5) -> 35 | E5: =IF(COUNTIF(D$1:D5,D5)<>1,IF($A5="Easier",RANDBETWEEN(1,Easy),IF($A5="Harder",RANDBETWEEN(Easy+1,Easy+Medium),IF($A5="Harder",RANDBETWEEN(Easy+Medium+1,Easy+Medium+Hard),RANDBETWEEN(1,Easy+Medium+Hard)))),D5) -> 35 | F5: =IF(COUNTIF(E$1:E5,E5)<>1,IF($A5="Easier",RANDBETWEEN(1,Easy),IF($A5="Harder",RANDBETWEEN(Easy+1,Easy+Medium),IF($A5="Harder",RANDBETWEEN(Easy+Medium+1,Easy+Medium+Hard),RANDBETWEEN(1,Easy+Medium+Hard)))),E5) -> 35 | G5: 5 | H5: =VLOOKUP($F5,'System DO NOT OPEN'!$A$8:$P$188,11) -> 0.6 × 5500 | I5: =VLOOKUP($F5,'System DO NOT OPEN'!$A$8:$P$188,16) -> 3300
A6: =Worksheet!D8 -> Easier | B6: 23 | C6: =IF(COUNTIF(B$1:B6,B6)<>1,IF($A6="Easier",RANDBETWEEN(1,Easy),IF($A6="Harder",RANDBETWEEN(Easy+1,Easy+Medium),IF($A6="Harder",RANDBETWEEN(Easy+Medium+1,Easy+Medium+Hard),RANDBETWEEN(1,Easy+Medium+Hard)))),B6) -> 23 | D6: =IF(COUNTIF(C$1:C6,C6)<>1,IF($A6="Easier",RANDBETWEEN(1,Easy),IF($A6="Harder",RANDBETWEEN(Easy+1,Easy+Medium),IF($A6="Harder",RANDBETWEEN(Easy+Medium+1,Easy+Medium+Hard),RANDBETWEEN(1,Easy+Medium+Hard)))),C6) -> 23 | E6: =IF(COUNTIF(D$1:D6,D6)<>1,IF($A6="Easier",RANDBETWEEN(1,Easy),IF($A6="Harder",RANDBETWEEN(Easy+1,Easy+Medium),IF($A6="Harder",RANDBETWEEN(Easy+Medium+1,Easy+Medium+Hard),RANDBETWEEN(1,Easy+Medium+Hard)))),D6) -> 23 | F6: =IF(COUNTIF(E$1:E6,E6)<>1,IF($A6="Easier",RANDBETWEEN(1,Easy),IF($A6="Harder",RANDBETWEEN(Easy+1,Easy+Medium),IF($A6="Harder",RANDBETWEEN(Easy+Medium+1,Easy+Medium+Hard),RANDBETWEEN(1,Easy+Medium+Hard)))),E6) -> 23 | G6: 6 | H6: =VLOOKUP($F6,'System DO NOT OPEN'!$A$8:$P$188,11) -> £6786 × 6 | I6: =VLOOKUP($F6,'System DO NOT OPEN'!$A$8:$P$188,16) -> £40716
A7: =Worksheet!D9 -> Easier | B7: 10 | C7: =IF(COUNTIF(B$1:B7,B7)<>1,IF($A7="Easier",RANDBETWEEN(1,Easy),IF($A7="Harder",RANDBETWEEN(Easy+1,Easy+Medium),IF($A7="Harder",RANDBETWEEN(Easy+Medium+1,Easy+Medium+Hard),RANDBETWEEN(1,Easy+Medium+Hard)))),B7) -> 10 | D7: =IF(COUNTIF(C$1:C7,C7)<>1,IF($A7="Easier",RANDBETWEEN(1,Easy),IF($A7="Harder",RANDBETWEEN(Easy+1,Easy+Medium),IF($A7="Harder",RANDBETWEEN(Easy+Medium+1,Easy+Medium+Hard),RANDBETWEEN(1,Easy+Medium+Hard)))),C7) -> 10 | E7: =IF(COUNTIF(D$1:D7,D7)<>1,IF($A7="Easier",RANDBETWEEN(1,Easy),IF($A7="Harder",RANDBETWEEN(Easy+1,Easy+Medium),IF($A7="Harder",RANDBETWEEN(Easy+Medium+1,Easy+Medium+Hard),RANDBETWEEN(1,Easy+Medium+Hard)))),D7) -> 10 | F7: =IF(COUNTIF(E$1:E7,E7)<>1,IF($A7="Easier",RANDBETWEEN(1,Easy),IF($A7="Harder",RANDBETWEEN(Easy+1,Easy+Medium),IF($A7="Harder",RANDBETWEEN(Easy+Medium+1,Easy+Medium+Hard),RANDBETWEEN(1,Easy+Medium+Hard)))),E7) -> 10 | G7: 7 | H7: =VLOOKUP($F7,'System DO NOT OPEN'!$A$8:$P$188,11) -> Calculate: 4/5 of 4660 | I7: =VLOOKUP($F7,'System DO NOT OPEN'!$A$8:$P$188,16) -> 3728
A8: =Worksheet!D10 -> Easier | B8: 7 | C8: =IF(COUNTIF(B$1:B8,B8)<>1,IF($A8="Easier",RANDBETWEEN(1,Easy),IF($A8="Harder",RANDBETWEEN(Easy+1,Easy+Medium),IF($A8="Harder",RANDBETWEEN(Easy+Medium+1,Easy+Medium+Hard),RANDBETWEEN(1,Easy+Medium+Hard)))),B8) -> 7 | D8: =IF(COUNTIF(C$1:C8,C8)<>1,IF($A8="Easier",RANDBETWEEN(1,Easy),IF($A8="Harder",RANDBETWEEN(Easy+1,Easy+Medium),IF($A8="Harder",RANDBETWEEN(Easy+Medium+1,Easy+Medium+Hard),RANDBETWEEN(1,Easy+Medium+Hard)))),C8) -> 7 | E8: =IF(COUNTIF(D$1:D8,D8)<>1,IF($A8="Easier",RANDBETWEEN(1,Easy),IF($A8="Harder",RANDBETWEEN(Easy+1,Easy+Medium),IF($A8="Harder",RANDBETWEEN(Easy+Medium+1,Easy+Medium+Hard),RANDBETWEEN(1,Easy+Medium+Hard)))),D8) -> 7 | F8: =IF(COUNTIF(E$1:E8,E8)<>1,IF($A8="Easier",RANDBETWEEN(1,Easy),IF($A8="Harder",RANDBETWEEN(Easy+1,Easy+Medium),IF($A8="Harder",RANDBETWEEN(Easy+Medium+1,Easy+Medium+Hard),RANDBETWEEN(1,Easy+Medium+Hard)))),E8) -> 7 | G8: 8 | H8: =VLOOKUP($F8,'System DO NOT OPEN'!$A$8:$P$188,11) -> 5.56 × 80 | I8: =VLOOKUP($F8,'System DO NOT OPEN'!$A$8:$P$188,16) -> 444.8
A9: =Worksheet!D11 -> Easier | B9: 3 | C9: =IF(COUNTIF(B$1:B9,B9)<>1,IF($A9="Easier",RANDBETWEEN(1,Easy),IF($A9="Harder",RANDBETWEEN(Easy+1,Easy+Medium),IF($A9="Harder",RANDBETWEEN(Easy+Medium+1,Easy+Medium+Hard),RANDBETWEEN(1,Easy+Medium+Hard)))),B9) -> 3 | D9: =IF(COUNTIF(C$1:C9,C9)<>1,IF($A9="Easier",RANDBETWEEN(1,Easy),IF($A9="Harder",RANDBETWEEN(Easy+1,Easy+Medium),IF($A9="Harder",RANDBETWEEN(Easy+Medium+1,Easy+Medium+Hard),RANDBETWEEN(1,Easy+Medium+Hard)))),C9) -> 3 | E9: =IF(COUNTIF(D$1:D9,D9)<>1,IF($A9="Easier",RANDBETWEEN(1,Easy),IF($A9="Harder",RANDBETWEEN(Easy+1,Easy+Medium),IF($A9="Harder",RANDBETWEEN(Easy+Medium+1,Easy+Medium+Hard),RANDBETWEEN(1,Easy+Medium+Hard)))),D9) -> 3 | F9: =IF(COUNTIF(E$1:E9,E9)<>1,IF($A9="Easier",RANDBETWEEN(1,Easy),IF($A9="Harder",RANDBETWEEN(Easy+1,Easy+Medium),IF($A9="Harder",RANDBETWEEN(Easy+Medium+1,Easy+Medium+Hard),RANDBETWEEN(1,Easy+Medium+Hard)))),E9) -> 3 | G9: 9 | H9: =VLOOKUP($F9,'System DO NOT OPEN'!$A$8:$P$188,11) -> 80% of 3500 | I9: =VLOOKUP($F9,'System DO NOT OPEN'!$A$8:$P$188,16) -> 2800
A10: =Worksheet!D12 -> Easier | B10: 6 | C10: =IF(COUNTIF(B$1:B10,B10)<>1,IF($A10="Easier",RANDBETWEEN(1,Easy),IF($A10="Harder",RANDBETWEEN(Easy+1,Easy+Medium),IF($A10="Harder",RANDBETWEEN(Easy+Medium+1,Easy+Medium+Hard),RANDBETWEEN(1,Easy+Medium+Hard)))),B10) -> 6 | D10: =IF(COUNTIF(C$1:C10,C10)<>1,IF($A10="Easier",RANDBETWEEN(1,Easy),IF($A10="Harder",RANDBETWEEN(Easy+1,Easy+Medium),IF($A10="Harder",RANDBETWEEN(Easy+Medium+1,Easy+Medium+Hard),RANDBETWEEN(1,Easy+Medium+Hard)))),C10) -> 6 | E10: =IF(COUNTIF(D$1:D10,D10)<>1,IF($A10="Easier",RANDBETWEEN(1,Easy),IF($A10="Harder",RANDBETWEEN(Easy+1,Easy+Medium),IF($A10="Harder",RANDBETWEEN(Easy+Medium+1,Easy+Medium+Hard),RANDBETWEEN(1,Easy+Medium+Hard)))),D10) -> 6 | F10: =IF(COUNTIF(E$1:E10,E10)<>1,IF($A10="Easier",RANDBETWEEN(1,Easy),IF($A10="Harder",RANDBETWEEN(Easy+1,Easy+Medium),IF($A10="Harder",RANDBETWEEN(Easy+Medium+1,Easy+Medium+Hard),RANDBETWEEN(1,Easy+Medium+Hard)))),E10) -> 6 | G10: 10 | H10: =VLOOKUP($F10,'System DO NOT OPEN'!$A$8:$P$188,11) -> 5.58 × 20 | I10: =VLOOKUP($F10,'System DO NOT OPEN'!$A$8:$P$188,16) -> 111.6
A11: =Worksheet!D13 -> Harder | B11: 68 | C11: =IF(COUNTIF(B$1:B11,B11)<>1,IF($A11="Easier",RANDBETWEEN(1,Easy),IF($A11="Harder",RANDBETWEEN(Easy+1,Easy+Medium),IF($A11="Harder",RANDBETWEEN(Easy+Medium+1,Easy+Medium+Hard),RANDBETWEEN(1,Easy+Medium+Hard)))),B11) -> 68 | D11: =IF(COUNTIF(C$1:C11,C11)<>1,IF($A11="Easier",RANDBETWEEN(1,Easy),IF($A11="Harder",RANDBETWEEN(Easy+1,Easy+Medium),IF($A11="Harder",RANDBETWEEN(Easy+Medium+1,Easy+Medium+Hard),RANDBETWEEN(1,Easy+Medium+Hard)))),C11) -> 68 | E11: =IF(COUNTIF(D$1:D11,D11)<>1,IF($A11="Easier",RANDBETWEEN(1,Easy),IF($A11="Harder",RANDBETWEEN(Easy+1,Easy+Medium),IF($A11="Harder",RANDBETWEEN(Easy+Medium+1,Easy+Medium+Hard),RANDBETWEEN(1,Easy+Medium+Hard)))),D11) -> 68 | F11: =IF(COUNTIF(E$1:E11,E11)<>1,IF($A11="Easier",RANDBETWEEN(1,Easy),IF($A11="Harder",RANDBETWEEN(Easy+1,Easy+Medium),IF($A11="Harder",RANDBETWEEN(Easy+Medium+1,Easy+Medium+Hard),RANDBETWEEN(1,Easy+Medium+Hard)))),E11) -> 68 | G11: 11 | H11: =VLOOKUP($F11,'System DO NOT OPEN'!$A$8:$P$188,11) -> 1/2 × 18 × 20 × 1/4 | I11: =VLOOKUP($F11,'System DO NOT OPEN'!$A$8:$P$188,16) -> 45
A12: =Worksheet!D14 -> Harder | B12: 60 | C12: =IF(COUNTIF(B$1:B12,B12)<>1,IF($A12="Easier",RANDBETWEEN(1,Easy),IF($A12="Harder",RANDBETWEEN(Easy+1,Easy+Medium),IF($A12="Harder",RANDBETWEEN(Easy+Medium+1,Easy+Medium+Hard),RANDBETWEEN(1,Easy+Medium+Hard)))),B12) -> 60 | D12: =IF(COUNTIF(C$1:C12,C12)<>1,IF($A12="Easier",RANDBETWEEN(1,Easy),IF($A12="Harder",RANDBETWEEN(Easy+1,Easy+Medium),IF($A12="Harder",RANDBETWEEN(Easy+Medium+1,Easy+Medium+Hard),RANDBETWEEN(1,Easy+Medium+Hard)))),C12) -> 60 | E12: =IF(COUNTIF(D$1:D12,D12)<>1,IF($A12="Easier",RANDBETWEEN(1,Easy),IF($A12="Harder",RANDBETWEEN(Easy+1,Easy+Medium),IF($A12="Harder",RANDBETWEEN(Easy+Medium+1,Easy+Medium+Hard),RANDBETWEEN(1,Easy+Medium+Hard)))),D12) -> 60 | F12: =IF(COUNTIF(E$1:E12,E12)<>1,IF($A12="Easier",RANDBETWEEN(1,Easy),IF($A12="Harder",RANDBETWEEN(Easy+1,Easy+Medium),IF($A12="Harder",RANDBETWEEN(Easy+Medium+1,Easy+Medium+Hard),RANDBETWEEN(1,Easy+Medium+Hard)))),E12) -> 60 | G12: 12 | H12: =VLOOKUP($F12,'System DO NOT OPEN'!$A$8:$P$188,11) -> 4 to the power of 3/2 | I12: =VLOOKUP($F12,'System DO NOT OPEN'!$A$8:$P$188,16) -> 8
A13: =Worksheet!D15 -> Harder | B13: 74 | C13: =IF(COUNTIF(B$1:B13,B13)<>1,IF($A13="Easier",RANDBETWEEN(1,Easy),IF($A13="Harder",RANDBETWEEN(Easy+1,Easy+Medium),IF($A13="Harder",RANDBETWEEN(Easy+Medium+1,Easy+Medium+Hard),RANDBETWEEN(1,Easy+Medium+Hard)))),B13) -> 74 | D13: =IF(COUNTIF(C$1:C13,C13)<>1,IF($A13="Easier",RANDBETWEEN(1,Easy),IF($A13="Harder",RANDBETWEEN(Easy+1,Easy+Medium),IF($A13="Harder",RANDBETWEEN(Easy+Medium+1,Easy+Medium+Hard),RANDBETWEEN(1,Easy+Medium+Hard)))),C13) -> 74 | E13: =IF(COUNTIF(D$1:D13,D13)<>1,IF($A13="Easier",RANDBETWEEN(1,Easy),IF($A13="Harder",RANDBETWEEN(Easy+1,Easy+Medium),IF($A13="Harder",RANDBETWEEN(Easy+Medium+1,Easy+Medium+Hard),RANDBETWEEN(1,Easy+Medium+Hard)))),D13) -> 74 | F13: =IF(COUNTIF(E$1:E13,E13)<>1,IF($A13="Easier",RANDBETWEEN(1,Easy),IF($A13="Harder",RANDBETWEEN(Easy+1,Easy+Medium),IF($A13="Harder",RANDBETWEEN(Easy+Medium+1,Easy+Medium+Hard),RANDBETWEEN(1,Easy+Medium+Hard)))),E13) -> 74 | G13: 13 | H13: =VLOOKUP($F13,'System DO NOT OPEN'!$A$8:$P$188,11) -> 1/2 × 24 × 15 × 2/3 | I13: =VLOOKUP($F13,'System DO NOT OPEN'!$A$8:$P$188,16) -> 120
A14: =Worksheet!D16 -> Harder | B14: 55 | C14: =IF(COUNTIF(B$1:B14,B14)<>1,IF($A14="Easier",RANDBETWEEN(1,Easy),IF($A14="Harder",RANDBETWEEN(Easy+1,Easy+Medium),IF($A14="Harder",RANDBETWEEN(Easy+Medium+1,Easy+Medium+Hard),RANDBETWEEN(1,Easy+Medium+Hard)))),B14) -> 55 | D14: =IF(COUNTIF(C$1:C14,C14)<>1,IF($A14="Easier",RANDBETWEEN(1,Easy),IF($A14="Harder",RANDBETWEEN(Easy+1,Easy+Medium),IF($A14="Harder",RANDBETWEEN(Easy+Medium+1,Easy+Medium+Hard),RANDBETWEEN(1,Easy+Medium+Hard)))),C14) -> 55 | E14: =IF(COUNTIF(D$1:D14,D14)<>1,IF($A14="Easier",RANDBETWEEN(1,Easy),IF($A14="Harder",RANDBETWEEN(Easy+1,Easy+Medium),IF($A14="Harder",RANDBETWEEN(Easy+Medium+1,Easy+Medium+Hard),RANDBETWEEN(1,Easy+Medium+Hard)))),D14) -> 55 | F14: =IF(COUNTIF(E$1:E14,E14)<>1,IF($A14="Easier",RANDBETWEEN(1,Easy),IF($A14="Harder",RANDBETWEEN(Easy+1,Easy+Medium),IF($A14="Harder",RANDBETWEEN(Easy+Medium+1,Easy+Medium+Hard),RANDBETWEEN(1,Easy+Medium+Hard)))),E14) -> 55 | G14: 14 | H14: =VLOOKUP($F14,'System DO NOT OPEN'!$A$8:$P$188,11) -> 4² - 4 × 4 + 1 | I14: =VLOOKUP($F14,'System DO NOT OPEN'!$A$8:$P$188,16) -> 1
A15: =Worksheet!D17 -> Harder | B15: 78 | C15: =IF(COUNTIF(B$1:B15,B15)<>1,IF($A15="Easier",RANDBETWEEN(1,Easy),IF($A15="Harder",RANDBETWEEN(Easy+1,Easy+Medium),IF($A15="Harder",RANDBETWEEN(Easy+Medium+1,Easy+Medium+Hard),RANDBETWEEN(1,Easy+Medium+Hard)))),B15) -> 78 | D15: =IF(COUNTIF(C$1:C15,C15)<>1,IF($A15="Easier",RANDBETWEEN(1,Easy),IF($A15="Harder",RANDBETWEEN(Easy+1,Easy+Medium),IF($A15="Harder",RANDBETWEEN(Easy+Medium+1,Easy+Medium+Hard),RANDBETWEEN(1,Easy+Medium+Hard)))),C15) -> 78 | E15: =IF(COUNTIF(D$1:D15,D15)<>1,IF($A15="Easier",RANDBETWEEN(1,Easy),IF($A15="Harder",RANDBETWEEN(Easy+1,Easy+Medium),IF($A15="Harder",RANDBETWEEN(Easy+Medium+1,Easy+Medium+Hard),RANDBETWEEN(1,Easy+Medium+Hard)))),D15) -> 78 | F15: =IF(COUNTIF(E$1:E15,E15)<>1,IF($A15="Easier",RANDBETWEEN(1,Easy),IF($A15="Harder",RANDBETWEEN(Easy+1,Easy+Medium),IF($A15="Harder",RANDBETWEEN(Easy+Medium+1,Easy+Medium+Hard),RANDBETWEEN(1,Easy+Medium+Hard)))),E15) -> 78 | G15: 15 | H15: =VLOOKUP($F15,'System DO NOT OPEN'!$A$8:$P$188,11) -> use the gradient formula with the coordinates: (-9 , -10) and (1 , -3) | I15: =VLOOKUP($F15,'System DO NOT OPEN'!$A$8:$P$188,16) -> 7/10
A16: =Worksheet!D18 -> Harder | B16: 58 | C16: =IF(COUNTIF(B$1:B16,B16)<>1,IF($A16="Easier",RANDBETWEEN(1,Easy),IF($A16="Harder",RANDBETWEEN(Easy+1,Easy+Medium),IF($A16="Harder",RANDBETWEEN(Easy+Medium+1,Easy+Medium+Hard),RANDBETWEEN(1,Easy+Medium+Hard)))),B16) -> 58 | D16: =IF(COUNTIF(C$1:C16,C16)<>1,IF($A16="Easier",RANDBETWEEN(1,Easy),IF($A16="Harder",RANDBETWEEN(Easy+1,Easy+Medium),IF($A16="Harder",RANDBETWEEN(Easy+Medium+1,Easy+Medium+Hard),RANDBETWEEN(1,Easy+Medium+Hard)))),C16) -> 58 | E16: =IF(COUNTIF(D$1:D16,D16)<>1,IF($A16="Easier",RANDBETWEEN(1,Easy),IF($A16="Harder",RANDBETWEEN(Easy+1,Easy+Medium),IF($A16="Harder",RANDBETWEEN(Easy+Medium+1,Easy+Medium+Hard),RANDBETWEEN(1,Easy+Medium+Hard)))),D16) -> 58 | F16: =IF(COUNTIF(E$1:E16,E16)<>1,IF($A16="Easier",RANDBETWEEN(1,Easy),IF($A16="Harder",RANDBETWEEN(Easy+1,Easy+Medium),IF($A16="Harder",RANDBETWEEN(Easy+Medium+1,Easy+Medium+Hard),RANDBETWEEN(1,Easy+Medium+Hard)))),E16) -> 58 | G16: 16 | H16: =VLOOKUP($F16,'System DO NOT OPEN'!$A$8:$P$188,11) -> -1 ± √81 | I16: =VLOOKUP($F16,'System DO NOT OPEN'!$A$8:$P$188,16) -> 8 or -10
A17: =Worksheet!D19 -> Harder | B17: 58 | C17: =IF(COUNTIF(B$1:B17,B17)<>1,IF($A17="Easier",RANDBETWEEN(1,Easy),IF($A17="Harder",RANDBETWEEN(Easy+1,Easy+Medium),IF($A17="Harder",RANDBETWEEN(Easy+Medium+1,Easy+Medium+Hard),RANDBETWEEN(1,Easy+Medium+Hard)))),B17) -> 50 | D17: =IF(COUNTIF(C$1:C17,C17)<>1,IF($A17="Easier",RANDBETWEEN(1,Easy),IF($A17="Harder",RANDBETWEEN(Easy+1,Easy+Medium),IF($A17="Harder",RANDBETWEEN(Easy+Medium+1,Easy+Medium+Hard),RANDBETWEEN(1,Easy+Medium+Hard)))),C17) -> 50 | E17: =IF(COUNTIF(D$1:D17,D17)<>1,IF($A17="Easier",RANDBETWEEN(1,Easy),IF($A17="Harder",RANDBETWEEN(Easy+1,Easy+Medium),IF($A17="Harder",RANDBETWEEN(Easy+Medium+1,Easy+Medium+Hard),RANDBETWEEN(1,Easy+Medium+Hard)))),D17) -> 50 | F17: =IF(COUNTIF(E$1:E17,E17)<>1,IF($A17="Easier",RANDBETWEEN(1,Easy),IF($A17="Harder",RANDBETWEEN(Easy+1,Easy+Medium),IF($A17="Harder",RANDBETWEEN(Easy+Medium+1,Easy+Medium+Hard),RANDBETWEEN(1,Easy+Medium+Hard)))),E17) -> 50 | G17: 17 | H17: =VLOOKUP($F17,'System DO NOT OPEN'!$A$8:$P$188,11) -> (3 + 4)² – 13 | I17: =VLOOKUP($F17,'System DO NOT OPEN'!$A$8:$P$188,16) -> 36
A18: =Worksheet!D20 -> Harder | B18: 48 | C18: =IF(COUNTIF(B$1:B18,B18)<>1,IF($A18="Easier",RANDBETWEEN(1,Easy),IF($A18="Harder",RANDBETWEEN(Easy+1,Easy+Medium),IF($A18="Harder",RANDBETWEEN(Easy+Medium+1,Easy+Medium+Hard),RANDBETWEEN(1,Easy+Medium+Hard)))),B18) -> 48 | D18: =IF(COUNTIF(C$1:C18,C18)<>1,IF($A18="Easier",RANDBETWEEN(1,Easy),IF($A18="Harder",RANDBETWEEN(Easy+1,Easy+Medium),IF($A18="Harder",RANDBETWEEN(Easy+Medium+1,Easy+Medium+Hard),RANDBETWEEN(1,Easy+Medium+Hard)))),C18) -> 48 | E18: =IF(COUNTIF(D$1:D18,D18)<>1,IF($A18="Easier",RANDBETWEEN(1,Easy),IF($A18="Harder",RANDBETWEEN(Easy+1,Easy+Medium),IF($A18="Harder",RANDBETWEEN(Easy+Medium+1,Easy+Medium+Hard),RANDBETWEEN(1,Easy+Medium+Hard)))),D18) -> 48 | F18: =IF(COUNTIF(E$1:E18,E18)<>1,IF($A18="Easier",RANDBETWEEN(1,Easy),IF($A18="Harder",RANDBETWEEN(Easy+1,Easy+Medium),IF($A18="Harder",RANDBETWEEN(Easy+Medium+1,Easy+Medium+Hard),RANDBETWEEN(1,Easy+Medium+Hard)))),E18) -> 48 | G18: 18 | H18: =VLOOKUP($F18,'System DO NOT OPEN'!$A$8:$P$188,11) -> 3.14 × 3² × 2 | I18: =VLOOKUP($F18,'System DO NOT OPEN'!$A$8:$P$188,16) -> 56.52
A19: =Worksheet!D21 -> Harder | B19: 61 | C19: =IF(COUNTIF(B$1:B19,B19)<>1,IF($A19="Easier",RANDBETWEEN(1,Easy),IF($A19="Harder",RANDBETWEEN(Easy+1,Easy+Medium),IF($A19="Harder",RANDBETWEEN(Easy+Medium+1,Easy+Medium+Hard),RANDBETWEEN(1,Easy+Medium+Hard)))),B19) -> 61 | D19: =IF(COUNTIF(C$1:C19,C19)<>1,IF($A19="Easier",RANDBETWEEN(1,Easy),IF($A19="Harder",RANDBETWEEN(Easy+1,Easy+Medium),IF($A19="Harder",RANDBETWEEN(Easy+Medium+1,Easy+Medium+Hard),RANDBETWEEN(1,Easy+Medium+Hard)))),C19) -> 61 | E19: =IF(COUNTIF(D$1:D19,D19)<>1,IF($A19="Easier",RANDBETWEEN(1,Easy),IF($A19="Harder",RANDBETWEEN(Easy+1,Easy+Medium),IF($A19="Harder",RANDBETWEEN(Easy+Medium+1,Easy+Medium+Hard),RANDBETWEEN(1,Easy+Medium+Hard)))),D19) -> 61 | F19: =IF(COUNTIF(E$1:E19,E19)<>1,IF($A19="Easier",RANDBETWEEN(1,Easy),IF($A19="Harder",RANDBETWEEN(Easy+1,Easy+Medium),IF($A19="Harder",RANDBETWEEN(Easy+Medium+1,Easy+Medium+Hard),RANDBETWEEN(1,Easy+Medium+Hard)))),E19) -> 61 | G19: 19 | H19: =VLOOKUP($F19,'System DO NOT OPEN'!$A$8:$P$188,11) -> 256 to the power of 3/4 | I19: =VLOOKUP($F19,'System DO NOT OPEN'!$A$8:$P$188,16) -> 64
A20: =Worksheet!D22 -> Harder | B20: 41 | C20: =IF(COUNTIF(B$1:B20,B20)<>1,IF($A20="Easier",RANDBETWEEN(1,Easy),IF($A20="Harder",RANDBETWEEN(Easy+1,Easy+Medium),IF($A20="Harder",RANDBETWEEN(Easy+Medium+1,Easy+Medium+Hard),RANDBETWEEN(1,Easy+Medium+Hard)))),B20) -> 41 | D20: =IF(COUNTIF(C$1:C20,C20)<>1,IF($A20="Easier",RANDBETWEEN(1,Easy),IF($A20="Harder",RANDBETWEEN(Easy+1,Easy+Medium),IF($A20="Harder",RANDBETWEEN(Easy+Medium+1,Easy+Medium+Hard),RANDBETWEEN(1,Easy+Medium+Hard)))),C20) -> 41 | E20: =IF(COUNTIF(D$1:D20,D20)<>1,IF($A20="Easier",RANDBETWEEN(1,Easy),IF($A20="Harder",RANDBETWEEN(Easy+1,Easy+Medium),IF($A20="Harder",RANDBETWEEN(Easy+Medium+1,Easy+Medium+Hard),RANDBETWEEN(1,Easy+Medium+Hard)))),D20) -> 41 | F20: =IF(COUNTIF(E$1:E20,E20)<>1,IF($A20="Easier",RANDBETWEEN(1,Easy),IF($A20="Harder",RANDBETWEEN(Easy+1,Easy+Medium),IF($A20="Harder",RANDBETWEEN(Easy+Medium+1,Easy+Medium+Hard),RANDBETWEEN(1,Easy+Medium+Hard)))),E20) -> 41 | G20: 20 | H20: =VLOOKUP($F20,'System DO NOT OPEN'!$A$8:$P$188,11) -> 5.5 × 72 + 10 | I20: =VLOOKUP($F20,'System DO NOT OPEN'!$A$8:$P$188,16) -> 406

Sheet System DO NOT OPEN
A1: Must be sorted by column B
A2: Number of easy questions | B2: =COUNTIF(ABC,"A") -> 37 | G2: A = basic skills
A3: Number of medium questions | B3: =COUNTIF(ABC,"B") -> 43 | G3: B = routine
A4: Number of hard questions | B4: =COUNTIF(ABC,"C") -> 0
A5: TOTAL | B5: =COUNT(Numbers) -> 70
B6: =B2+B3+B4=B5 -> FALSE
A7: Question number | B7: Difficulty | P7: Answer
A8: =IF(ISBLANK(C8)," ",ROW(B8)-7) -> 1 | B8: A | C8: =CHOOSE(RANDBETWEEN(1,2),"25%","75%") -> 75% | D8: of | E8: =4*RANDBETWEEN(11,99)*10^RANDBETWEEN(1,3) -> 21200 | K8: =CONCATENATE("",C8,"",D8,"",E8,"",F8,"",G8,"",H8,"",I8,"",J8,"") -> 75% of 21200 | L8: =IF(C8="25%",E8/4,E8/4*3) -> 15900 | P8: =CONCATENATE("",L8,"",M8,"",N8,"",O8,"") -> 15900
A9: 2 | B9: A | C9: =RANDBETWEEN(2,4)*10 -> 20 | D9: % of | E9: =10^RANDBETWEEN(1,3)*RANDBETWEEN(5,99) -> 850 | K9: 20% of 850 | L9: =E9/100*C9 -> 170 | P9: 170
A10: 3 | B10: A | C10: =RANDBETWEEN(6,9)*10 -> 80 | D10: % of | E10: =10^RANDBETWEEN(1,3)*RANDBETWEEN(5,99) -> 3500 | K10: 80% of 3500 | L10: =E10/100*C10 -> 2800 | P10: 2800
A11: 4 | B11: A | C11: =RANDBETWEEN(101,99999)/10^RANDBETWEEN(1,4) -> 76.608 | D11: × | E11: =10^RANDBETWEEN(2,4) -> 10000 | K11: 76.608 × 10000 | L11: =C11*E11 -> 766080 | P11: 766080
A12: 5 | B12: A | C12: =RANDBETWEEN(101,99999)/10^RANDBETWEEN(1,5) -> 7543.2 | D12: ÷ | E12: =10^RANDBETWEEN(2,4) -> 10000 | K12: 7543.2 ÷ 10000 | L12: =C12/E12 -> 0.75432 | P12: 0.75432
A13: 6 | B13: A | C13: =(RANDBETWEEN(11,99)*10+RANDBETWEEN(1,9))/10^RANDBETWEEN(1,2) -> 5.58 | D13: × | E13: =RANDBETWEEN(2,9)*10 -> 20 | K13: 5.58 × 20 | L13: =C13*E13 -> 111.6 | P13: 111.6
A14: 7 | B14: A | C14: =(RANDBETWEEN(11,99)*10+RANDBETWEEN(1,9))/10^RANDBETWEEN(1,2) -> 5.56 | D14: × | E14: =RANDBETWEEN(2,9)*10 -> 80 | K14: 5.56 × 80 | L14: =C14*E14 -> 444.8 | P14: 444.8
A15: 8 | B15: A | C15: =RANDBETWEEN(1,3)*10+RANDBETWEEN(1,9) -> 25 | D15: × | E15: =RANDBETWEEN(1,9)*10+RANDBETWEEN(1,9) -> 75 | K15: 25 × 75 | L15: =C15*E15 -> 1875 | P15: 1875
A16: 9 | B16: A | C16: =RANDBETWEEN(1,9)*10+RANDBETWEEN(1,9) -> 42 | D16: × | E16: =RANDBETWEEN(1,9)*10+RANDBETWEEN(1,9) -> 76 | K16: 42 × 76 | L16: =C16*E16 -> 3192 | P16: 3192
A17: 10 | B17: A | C17: Calculate: | D17: =RANDBETWEEN(2,F17-1) -> 4 | E17: / | F17: =RANDBETWEEN(5,9) -> 5 | G17: of | H17: =F17*RANDBETWEEN(501,999) -> 4660 | K17: Calculate: 4/5 of 4660 | L17: =H17/F17*D17 -> 3728 | P17: 3728
A18: 11 | B18: A | C18: 5 | D18: % of | E18: =2*10^RANDBETWEEN(1,3)*RANDBETWEEN(11,99) -> 1760 | K18: 5% of 1760 | L18: =E18/100*C18 -> 88 | P18: 88
A19: 12 | B19: A | C19: Add together: | D19: =RANDBETWEEN(10001,99999) -> 10025 | E19: =RANDBETWEEN(1001,9999) -> 5186 | F19: =RANDBETWEEN(1001,9999) -> 1205 | G19: =RANDBETWEEN(10001,99999) -> 82960 | H19: =RANDBETWEEN(1001,9999) -> 2758 | I19: =RANDBETWEEN(10001,99999) -> 58293 | J19: =RANDBETWEEN(10001,99999) -> 87359 | K19: =CONCATENATE("",C19,"",D19,"+ ",E19," + ",F19," + ",G19," + ",H19," + ",I19," + ",J19,"") -> Add together: 10025+ 5186 + 1205 + 82960 + 2758 + 58293 + 87359 | L19: =SUM(C19:I19) -> 160427 | P19: 160427
A20: 13 | B20: A | C20: What is the square root of | D20: =RANDBETWEEN(6,12)^2 -> 121 | E20: ? | K20: =CONCATENATE("",C20,"",D20,"",E20,"",F20,"",G20,"",H20,"",I20,"",J20,"") -> What is the square root of 121? | L20: =SQRT(D20) -> 11 | P20: 11
A21: 14 | B21: A | C21: What is | D21: =RANDBETWEEN(2,9) -> 9 | E21: cubed ? | K21: What is 9 cubed ? | L21: =D21^3 -> 729 | P21: 729
A22: 15 | B22: A | C22: What is | D22: =CHOOSE(RANDBETWEEN(1,5),2,3,4,5,10) -> 5 | E22: to the power of 4 ? | K22: What is 5 to the power of 4 ? | L22: =D22^4 -> 625 | P22: 625
B23: A | D23: ( | E23: √ | F23: =RANDBETWEEN(2,13) -> 3 | G23: )² | K23: (√3)² | L23: =F23 -> 3 | P23: 3
B24: A | D24: ( | E24: √ | F24: =RANDBETWEEN(2,13) -> 13 | G24: )² – ( | H24: √ | I24: =RANDBETWEEN(2,13) -> 12 | J24: )² | K24: (√13)² – (√12)² | L24: =F24-I24 -> 1 | P24: 1
B25: A | D25: ( | E25: √ | F25: =RANDBETWEEN(2,13) -> 6 | G25: )² + ( | H25: √ | I25: =RANDBETWEEN(2,13) -> 8 | J25: )² | K25: (√6)² + (√8)² | L25: =F25+I25 -> 14 | P25: 14
A26: =IF(ISBLANK(D26)," ",ROW(B26)-7) -> 19 | B26: A | D26: What is the cube root of | E26: =RANDBETWEEN(1,5)^3 -> 27 | F26: ? | K26: What is the cube root of 27 ? | L26: =E26^(1/3) -> 3 | P26: 3
A27: =IF(ISBLANK(D27)," ",ROW(B27)-7) -> 20 | B27: A | D27: What is the 4th root of | E27: =RANDBETWEEN(1,5)^4 -> 1 | F27: ? | K27: What is the 4th root of 1 ? | L27: =E27^(1/4) -> 1 | P27: 1
A28: =IF(ISBLANK(C28)," ",ROW(B28)-7) -> 21 | B28: A | C28: 180 – | D28: =RANDBETWEEN(11,90) -> 39 | E28: – | F28: =RANDBETWEEN(11,89) -> 31 | K28: 180 – 39 – 31 | L28: =180-D28-F28 -> 110 | P28: 110
A29: 22 | B29: A | C29: 180 – 2 × | D29: =RANDBETWEEN(11,79) -> 75 | K29: 180 – 2 × 75 | L29: =180-2*D29 -> 30 | P29: 30
A30: 23 | B30: A | C30: £ | D30: =RANDBETWEEN(1001,9999) -> 6786 | E30: × | F30: =RANDBETWEEN(6,9) -> 6 | K30: £6786 × 6 | L30: £ | M30: =D30*F30 -> 40716 | P30: £40716
A31: 24 | B31: A | C31: =RANDBETWEEN(2,9) -> 7 | D31: % of £ | E31: =RANDBETWEEN(2,9)*10^RANDBETWEEN(2,3) -> 600 | K31: 7% of £600 | L31: £ | M31: =E31/100*C31 -> 42 | P31: £42
A32: 25 | B32: A | C32: Multiply: | D32: =RANDBETWEEN(11,19) -> 14 | E32: × | F32: =RANDBETWEEN(4,9) -> 5 | G32: × | H32: =RANDBETWEEN(4,9) -> 7 | K32: Multiply: 14 × 5 × 7 | L32: =D32*F32*H32 -> 490 | P32: 490
A33: 26 | B33: A | C33: =RANDBETWEEN(12,15) -> 15 | D33: × | E33: =RANDBETWEEN(12,19) -> 18 | K33: 15 × 18 | L33: =C33*E33+G33 -> 270 | P33: 270
A34: 27 | B34: A | C34: =RANDBETWEEN(2,9)*10 -> 60 | D34: + | E34: =RANDBETWEEN(12,15) -> 15 | F34: × | G34: =RANDBETWEEN(12,19) -> 17 | K34: 60 + 15 × 17 | L34: =C34+E34*G34 -> 315 | P34: 315
A35: 28 | B35: A | C35: Divide: | D35: =F35*L35 -> 3250 | E35: ÷ | F35: =RANDBETWEEN(2,5)*10^RANDBETWEEN(1,2) -> 500 | K35: Divide: 3250 ÷ 500 | L35: =RANDBETWEEN(2,6)+0.5 -> 6.5 | P35: 6.5
A36: 29 | B36: A | C36: Divide: | D36: =F36*L36 -> 315 | E36: ÷ | F36: =RANDBETWEEN(2,5)*10^RANDBETWEEN(1,2) -> 50 | K36: Divide: 315 ÷ 50 | L36: =RANDBETWEEN(2,6)+RANDBETWEEN(1,9)/10 -> 6.3 | P36: 6.3
A37: 30 | B37: A | C37: =RANDBETWEEN(2,9) -> 5 | D37: × | E37: =RANDBETWEEN(2,5) -> 3 | F37: ² | K37: 5 × 3² | L37: =C37*E37^2 -> 45 | P37: 45
A38: 31 | B38: A | C38: Divide: | D38: =F38*L38*(-1)*RANDBETWEEN(1,2) -> -1080000 | E38: ÷ | F38: =RANDBETWEEN(2,5)*10^RANDBETWEEN(1,2)*RANDBETWEEN(1,2) -> 600 | K38: Divide: -1080000 ÷ 600 | L38: =RANDBETWEEN(2,9)*10^RANDBETWEEN(1,2) -> 900 | P38: 900
A39: 32 | B39: A | C39: =RANDBETWEEN(20,49)*10 -> 490 | D39: – | E39: =RANDBETWEEN(1,2)*10 -> 10 | F39: × | G39: =RANDBETWEEN(6,15) -> 12 | K39: 490 – 10 × 12 | L39: =C39-E39*G39 -> 370 | P39: 370
A40: 33 | B40: A | C40: Divide: | D40: =F40*L40 -> 2580 | E40: ÷ | F40: =RANDBETWEEN(2,5)*10^RANDBETWEEN(1,2) -> 500 | K40: Divide: 2580 ÷ 500 | L40: =RANDBETWEEN(2,6)+RANDBETWEEN(1,99)/100 -> 5.16 | P40: 5.16
A41: 34 | B41: A | C41: ( | D41: =RANDBETWEEN(-10,-1) -> -2 | E41: ) × ( | F41: =RANDBETWEEN(-10,-2) -> -10 | G41: ) + | H41: =RANDBETWEEN(1,5) -> 2 | K41: (-2) × (-10) + 2 | L41: =D41*F41+H41 -> 22 | P41: 22
A42: 35 | B42: A | C42: =RANDBETWEEN(2,9)/10 -> 0.6 | D42: × | E42: =RANDBETWEEN(1,99)*10^RANDBETWEEN(1,2) -> 5500 | K42: 0.6 × 5500 | L42: =C42*E42 -> 3300 | P42: 3300
A43: 36 | B43: A | C43: =RANDBETWEEN(2,9)/100 -> 0.06 | D43: × | E43: =RANDBETWEEN(1,99)*10^RANDBETWEEN(2,3) -> 1800 | K43: 0.06 × 1800 | L43: =C43*E43 -> 108 | P43: 108
A44: 37 | B44: A | C44: 15% of | D44: £ | E44: =10*RANDBETWEEN(11,99) -> 460 | K44: 15% of £460 | L44: £ | M44: =TEXT(E44/100*15,"#.00") -> 69.00 | P44: £69.00
B45: B | D45: √ | E45: =CHOOSE(RANDBETWEEN(1,4),2,3,5,7) -> 2 | F45: + | G45: √ | H45: =E45 -> 2 | K45: √2 + √2 | L45: =2 -> 2 | M45: √ | N45: =H45 -> 2 | P45: 2√2
B46: B | D46: =RANDBETWEEN(3,10) -> 6 | E46: √ | F46: =CHOOSE(RANDBETWEEN(1,4),2,3,5,7) -> 7 | G46: – | H46: =D46-1 -> 5 | I46: √ | J46: =F46 -> 7 | K46: 6√7 – 5√7 | L46: =I46 -> √ | M46: =J46 -> 7 | P46: √7
B47: B | D47: =RANDBETWEEN(3,10) -> 10 | E47: √ | F47: =CHOOSE(RANDBETWEEN(1,4),2,3,5,7) -> 2 | G47: =CHOOSE(RANDBETWEEN(1,2)," + "," – ") -> + | H47: =RANDBETWEEN(3,10) -> 3 | I47: √ | J47: =F47 -> 2 | K47: 10√2 + 3√2 | L47: =IF(G47=" + ",D47+H47,D47-H47) -> 13 | M47: =IF(L47<0,"–","") ->  | N47: =CONCATENATE(IF(ABS(L47)=1,"",ABS(L47)),"√") -> 13√ | O47: =IF(ABS(D47-H47)=0,"",J47) -> 2 | P47: =CONCATENATE("",M47,"",N47,"",O47,"") -> 13√2
A48: 41 | B48: B | C48: =RANDBETWEEN(2,9)+0.5 -> 5.5 | D48: =CONCATENATE(" × ",IF(E48<0,"(","")) -> × | E48: =2*RANDBETWEEN(10,20)*2 -> 72 | F48: =CONCATENATE(IF(E48<0,")","")," + ") -> + | G48: =RANDBETWEEN(2,10) -> 10 | K48: 5.5 × 72 + 10 | L48: =C48*E48+G48 -> 406 | P48: =CONCATENATE("",L48,"",M48,"",N48,"",O48,"") -> 406
A49: 42 | B49: B | C49: =RANDBETWEEN(10,30) -> 10 | D49: – | E49: =RANDBETWEEN(3,10) -> 8 | F49: × | G49: =RANDBETWEEN(2,5) -> 2 | H49: ² | K49: 10 – 8 × 2² | L49: =C49-E49*G49^2 -> -22 | P49: -22
A50: 43 | B50: B | C50: =RANDBETWEEN(2,9)/10 -> 0.2 | D50: × | E50: =RANDBETWEEN(1,99)*10^RANDBETWEEN(1,2) -> 2100 | K50: 0.2 × 2100 | L50: =C50*E50 -> 420 | P50: 420
A51: 44 | B51: B | C51: =RANDBETWEEN(2,9)/100 -> 0.02 | D51: × | E51: =RANDBETWEEN(1,99)*10^RANDBETWEEN(2,3) -> 5000 | K51: 0.02 × 5000 | L51: =C51*E51 -> 100 | P51: 100
A52: =IF(ISBLANK(D52)," ",ROW(B52)-7) -> 45 | B52: B | D52: What is the cube root of | E52: =RANDBETWEEN(1,5)^3 -> 64 | F52: ? | K52: =CONCATENATE("",C52,"",D52,"",E52,"",F52,"",G52,"",H52,"",I52,"",J52,"") -> What is the cube root of 64 ? | L52: =E52^(1/3) -> 4 | P52: 4
A53: =IF(ISBLANK(D53)," ",ROW(B53)-7) -> 46 | B53: B | D53: What is the 4th root of | E53: =RANDBETWEEN(1,5)^4 -> 256 | F53: ? | K53: What is the 4th root of 256 ? | L53: =E53^(1/4) -> 4 | P53: 4
A54: =IF(ISBLANK(C54)," ",ROW(B54)-7) -> 47 | B54: B | C54: £ | D54: =RANDBETWEEN(3,14) -> 14 | E54: . | F54: =RANDBETWEEN(1,9)*10 -> 10 | G54: × | H54: =RANDBETWEEN(3,8)*10^RANDBETWEEN(1,2) -> 400 | K54: £14.10 × 400 | L54: £ | M54: =(D54+F54/100)*H54 -> 5640 | P54: £5640
A55: 48 | B55: B | C55: 3.14 × | D55: =CHOOSE(RANDBETWEEN(1,3),2,3,10) -> 3 | E55: ² × | F55: =RANDBETWEEN(2,5) -> 2 | K55: 3.14 × 3² × 2 | L55: =3.14*D55^2*F55 -> 56.52 | P55: 56.52
A56: 49 | B56: B | C56: ( | D56: =RANDBETWEEN(2,5) -> 3 | E56: + | F56: =RANDBETWEEN(0,4) -> 2 | G56: )² | H56: + | I56: =RANDBETWEEN(1,20) -> 5 | K56: (3 + 2)² + 5 | L56: =(D56+F56)^2+I56 -> 30 | P56: 30
A57: 50 | B57: B | C57: ( | D57: =RANDBETWEEN(2,5) -> 3 | E57: + | F57: =RANDBETWEEN(0,4) -> 4 | G57: )² | H57: – | I57: =RANDBETWEEN(1,20) -> 13 | K57: (3 + 4)² – 13 | L57: =(D57+F57)^2-I57 -> 36 | P57: 36
A58: 51 | B58: B | C58: ( | D58: =RANDBETWEEN(2,5) -> 4 | E58: – | F58: =RANDBETWEEN(0,4) -> 3 | G58: )² | H58: + | I58: =RANDBETWEEN(1,20) -> 12 | K58: (4 – 3)² + 12 | L58: =(D58-F58)^2+I58 -> 13 | P58: 13
A59: 52 | B59: B | C59: ( | D59: =RANDBETWEEN(2,5) -> 3 | E59: – | F59: =RANDBETWEEN(0,4) -> 4 | G59: )² | H59: – | I59: =RANDBETWEEN(1,20) -> 12 | K59: (3 – 4)² – 12 | L59: =(D59-F59)^2-I59 -> -11 | P59: -11
A60: 53 | B60: B | C60: =RANDBETWEEN(2,5) -> 4 | D60: ² – 4 × | E60: =RANDBETWEEN(1,4) -> 4 | F60: × | G60: =RANDBETWEEN(1,4) -> 2 | K60: 4² – 4 × 4 × 2 | L60: =C60^2-4*E60*G60 -> -16 | P60: -16
A61: 54 | B61: B | C61: =RANDBETWEEN(2,5) -> 5 | D61: ² – 4 × | E61: =RANDBETWEEN(1,4) -> 3 | F61: × ( | G61: =RANDBETWEEN(-5,-1) -> -2 | H61: ) | K61: 5² – 4 × 3 × (-2) | L61: =C61^2-4*E61*G61 -> 49 | P61: 49
A62: 55 | B62: B | C62: =RANDBETWEEN(1,5) -> 4 | D62: ² - | E62: =RANDBETWEEN(1,5) -> 4 | F62: × | G62: =C62 -> 4 | H62: + | I62: =RANDBETWEEN(1,9) -> 1 | K62: 4² - 4 × 4 + 1 | L62: =C62^2-E62*G62+I62 -> 1 | P62: 1
A63: 56 | B63: B | C63: =RANDBETWEEN(1,5) -> 2 | D63: ² + | E63: =RANDBETWEEN(1,5) -> 1 | F63: × | G63: =C63 -> 2 | H63: – | I63: =RANDBETWEEN(1,9) -> 2 | K63: 2² + 1 × 2 – 2 | L63: =C63^2+E63*G63-I63 -> 4 | P63: 4
A64: 57 | B64: B | C64: ( | D64: =RANDBETWEEN(-5,-1) -> -3 | E64: )² + | F64: =RANDBETWEEN(1,5) -> 4 | G64: × ( | H64: =D64 -> -3 | I64: ) + | J64: =RANDBETWEEN(1,9) -> 9 | K64: (-3)² + 4 × (-3) + 9 | L64: =D64^2+F64*H64+J64 -> 6 | P64: 6
A65: =IF(ISBLANK(D65)," ",ROW(B65)-7) -> 58 | B65: B | D65: =RANDBETWEEN(1,5)*(-1)^RANDBETWEEN(1,2) -> -1 | E65: ± | F65: √ | G65: =RANDBETWEEN(2,10)^2 -> 81 | K65: -1 ± √81 | L65: =D65+SQRT(G65) -> 8 | M65: or | N65: =D65-SQRT(G65) -> -10 | P65: 8 or -10
A66: =IF(ISBLANK(D66)," ",ROW(B66)-7) -> 59 | B66: B | D66: =RANDBETWEEN(2,5)^3 -> 27 | E66: to the power of | F66: two thirds | K66: 27 to the power of two thirds | L66: =D66^(2/3) -> 9 | P66: 9
A67: =IF(ISBLANK(D67)," ",ROW(B67)-7) -> 60 | B67: B | D67: =RANDBETWEEN(2,10)^2 -> 4 | E67: to the power of | F67: 3/2 | K67: 4 to the power of 3/2 | L67: =ROUND(D67^(3/2),0) -> 8 | P67: 8
A68: =IF(ISBLANK(D68)," ",ROW(B68)-7) -> 61 | B68: B | D68: =RANDBETWEEN(2,5)^4 -> 256 | E68: to the power of | F68: 3/4 | K68: 256 to the power of 3/4 | L68: =D68^(3/4) -> 64 | P68: 64
A69: =IF(ISBLANK(D69)," ",ROW(B69)-7) -> 62 | B69: B | D69: =RANDBETWEEN(2,3)^5 -> 32 | E69: to the power of | F69: 2/5 | K69: 32 to the power of 2/5 | L69: =D69^(2/5) -> 4 | P69: 4
A70: =IF(ISBLANK(C70)," ",ROW(B70)-7) -> 63 | B70: B | C70: ( | D70: =RANDBETWEEN(1,9)/10+RANDBETWEEN(5,9) -> 9.2 | E70: + | F70: =MROUND(10-D70,0.1) -> 0.8 | G70: )( | H70: =D70 -> 9.2 | I70: – | J70: =CONCATENATE(F70,")") -> 0.8) | K70: (9.2 + 0.8)(9.2 – 0.8) | L70: =10*(H70-F70) -> 84 | P70: 84
A71: 64 | B71: B | C71: ( | D71: =RANDBETWEEN(1,9)/10+RANDBETWEEN(5,9) -> 6.6 | E71: + | F71: =MROUND(10-D71,0.1) -> 3.4 | G71: )( | H71: =D71 -> 6.6 | I71: – | J71: =CONCATENATE(F71,")") -> 3.4) | K71: (6.6 + 3.4)(6.6 – 3.4) | L71: =10*(H71-F71) -> 32 | P71: 32
A72: 65 | B72: B | C72: 3.14 × | D72: =CHOOSE(RANDBETWEEN(1,3),10,2,3) -> 2 | E72: ² × | F72: =3*RANDBETWEEN(4,8) -> 15 | G72: ÷ | H72: 3 | K72: 3.14 × 2² × 15 ÷ 3 | L72: =3.14*D72^2*F72/H72 -> 62.8 | P72: 62.8
A73: 66 | B73: B | C73: 3.14 × 3³ ÷ 3 × 4 | K73: 3.14 × 3³ ÷ 3 × 4 | L73: =3.14*3^3/3*4 -> 113.04 | P73: 113.04
A74: 67 | B74: B | C74: 1/2 | D74: × | E74: =2*RANDBETWEEN(6,15) -> 14 | F74: × | G74: =2*RANDBETWEEN(6,15) -> 12 | H74: × | I74: 1/2 | K74: 1/2 × 14 × 12 × 1/2 | L74: =(E74/2)*(G74/2) -> 42 | P74: 42
A75: 68 | B75: B | C75: 1/2 | D75: × | E75: =2*RANDBETWEEN(6,15) -> 18 | F75: × | G75: =4*RANDBETWEEN(3,9) -> 20 | H75: × | I75: 1/4 | K75: 1/2 × 18 × 20 × 1/4 | L75: =(E75/2)*(G75/4) -> 45 | P75: 45
A76: 69 | B76: B | C76: 1/2 | D76: × | E76: =2*RANDBETWEEN(6,15) -> 18 | F76: × | G76: =3*RANDBETWEEN(3,9) -> 12 | H76: × | I76: 1/3 | K76: 1/2 × 18 × 12 × 1/3 | L76: =(E76/2)*(G76/3) -> 36 | P76: 36
A77: 70 | B77: B | C77: 1/2 | D77: × | E77: =2*RANDBETWEEN(6,12) -> 24 | F77: × | G77: =3*RANDBETWEEN(3,5) -> 15 | H77: × | I77: 2/3 | K77: 1/2 × 24 × 15 × 2/3 | L77: =(E77/2)*(G77/3*2) -> 120 | P77: 120
B78: B | D78: =RANDBETWEEN(2,5) -> 4 | E78: × √ | F78: =CHOOSE(RANDBETWEEN(1,3),2,3,5) -> 5 | G78: × | H78: =RANDBETWEEN(2,5) -> 3 | I78: × √ | J78: =F78 -> 5 | K78: 4 × √5 × 3 × √5 | L78: =F78*D78*H78 -> 60 | P78: 60
B79: B | D79: =RANDBETWEEN(2,5) -> 3 | E79: √ | F79: =CHOOSE(RANDBETWEEN(1,3),2,3,5) -> 5 | G79: × | H79: =RANDBETWEEN(2,5) -> 4 | I79: √ | J79: =F79 -> 5 | K79: 3√5 × 4√5 | L79: =F79*D79*H79 -> 60 | P79: 60
B80: B | D80: =RANDBETWEEN(2,8) -> 4 | E80: √ | F80: =CHOOSE(RANDBETWEEN(1,3),2,3,5) -> 2 | G80: × | H80: =RANDBETWEEN(2,8) -> 7 | I80: √ | J80: =F80 -> 2 | K80: 4√2 × 7√2 | L80: =F80*D80*H80 -> 56 | P80: 56
B81: B | D81: =RANDBETWEEN(2,5) -> 5 | E81: √ | F81: =CHOOSE(RANDBETWEEN(1,3),5,7,11) -> 7 | G81: × | H81: =RANDBETWEEN(2,5) -> 2 | I81: √ | J81: =F81 -> 7 | K81: 5√7 × 2√7 | L81: =F81*D81*H81 -> 70 | P81: 70
A82: 75 | B82: B | C82: 2 × | D82: =RANDBETWEEN(2,5)+0.5 -> 5.5 | E82: × | F82: =RANDBETWEEN(3,9)+0.5 -> 9.5 | K82: 2 × 5.5 × 9.5 | L82: =2*D82*F82 -> 104.5 | P82: 104.5
A83: 76 | B83: B | C83: ( | D83: =RANDBETWEEN(-10,10) -> -10 | E83: , | F83: =RANDBETWEEN(-10,10) -> 2 | G83: ) and ( | H83: =RANDBETWEEN(-10,10) -> 5 | I83: , | J83: =RANDBETWEEN(-10,10) -> -2 | K83: =CONCATENATE("use the gradient formula with the coordinates: ",C83,"",D83,"",E83,"",F83,"",G83,"",H83,"",I83,"",J83,")") -> use the gradient formula with the coordinates: (-10 , 2) and (5 , -2) | L83: =J83-F83 -> -4 | M83: =H83-D83 -> 15 | N83: =TEXT(L83/M83,"###/###") -> -4/15 | P83: =N83 -> -4/15
A84: 77 | B84: B | C84: ( | D84: =RANDBETWEEN(-10,10) -> -3 | E84: , | F84: =RANDBETWEEN(-10,10) -> 3 | G84: ) and ( | H84: =RANDBETWEEN(-10,10) -> 9 | I84: , | J84: =RANDBETWEEN(-10,10) -> -6 | K84: =CONCATENATE("use the gradient formula with the coordinates: ",C84,"",D84,"",E84,"",F84,"",G84,"",H84,"",I84,"",J84,")") -> use the gradient formula with the coordinates: (-3 , 3) and (9 , -6) | L84: =J84-F84 -> -9 | M84: =H84-D84 -> 12 | N84: =TEXT(L84/M84,"###/###") -> -3/4 | P84: =N84 -> -3/4
A85: 78 | B85: B | C85: ( | D85: =RANDBETWEEN(-10,10) -> -9 | E85: , | F85: =RANDBETWEEN(-10,10) -> -10 | G85: ) and ( | H85: =RANDBETWEEN(-10,10) -> 1 | I85: , | J85: =RANDBETWEEN(-10,10) -> -3 | K85: =CONCATENATE("use the gradient formula with the coordinates: ",C85,"",D85,"",E85,"",F85,"",G85,"",H85,"",I85,"",J85,")") -> use the gradient formula with the coordinates: (-9 , -10) and (1 , -3) | L85: =J85-F85 -> 7 | M85: =H85-D85 -> 10 | N85: =TEXT(L85/M85,"###/###") -> 7/10 | P85: =N85 -> 7/10
A86: 79 | B86: B | C86: ( | D86: =RANDBETWEEN(-10,10) -> 0 | E86: , | F86: =RANDBETWEEN(-10,10) -> -7 | G86: ) and ( | H86: =RANDBETWEEN(-10,10) -> -5 | I86: , | J86: =RANDBETWEEN(-10,10) -> -2 | K86: =CONCATENATE("use the gradient formula with the coordinates: ",C86,"",D86,"",E86,"",F86,"",G86,"",H86,"",I86,"",J86,")") -> use the gradient formula with the coordinates: (0 , -7) and (-5 , -2) | L86: =J86-F86 -> 5 | M86: =H86-D86 -> -5 | N86: =TEXT(L86/M86,"###/###") -> -1/1 | P86: =N86 -> -1/1
A87: 80 | B87: B | C87: ( | D87: =RANDBETWEEN(-10,10) -> -2 | E87: , | F87: =RANDBETWEEN(-10,10) -> -6 | G87: ) and ( | H87: =RANDBETWEEN(-10,10) -> 10 | I87: , | J87: =RANDBETWEEN(-10,10) -> -4 | K87: =CONCATENATE("use the gradient formula with the coordinates: ",C87,"",D87,"",E87,"",F87,"",G87,"",H87,"",I87,"",J87,")") -> use the gradient formula with the coordinates: (-2 , -6) and (10 , -4) | L87: =J87-F87 -> 2 | M87: =H87-D87 -> 12 | N87: =TEXT(L87/M87,"###/###") -> 1/6 | P87: =N87 -> 1/6
K88: =CONCATENATE("",C88,"",D88,"",E88,"",F88,"",G88,"",H88,"",I88,"",J88,"") ->  | P88: =CONCATENATE("",L88,"",M88,"",N88,"",O88,"") -> 
